Cogmind - Beta 14 @@@ ROGUE MODE // 2024.08.14 @ 18:56:37 Player: JohnnyDongs Result: Destroyed by Y-45 Defender with Beam Rifle Performance ------------- Evolutions (2) 1000 Regions Visited (3) 600 Robots Destroyed (45) 225 Value Destroyed (1105) 1105 Prototype IDs (4) 80 Alien Tech Used (0) 0 Bonus (16) 16 TOTAL SCORE: 3026 Bonus ------- High Alert Combat Kills 16 Cogmind --------- Core Integrity 0/550 Matter 120/300 Energy 99/100 System Corruption 0% Temperature Cool (9) Movement Rolling (80) Location -8/Materials Parts ------- > --- POWER (1) -------- (None) > --- PROPULSION (3) --- Wheel > --- UTILITY (3) ------ Transport Network Coupler > --- WEAPON (4) ------- (None) > --- INVENTORY (5) ---- (None) Peak State ------------ > --- POWER ------------ Ion Engine > --- PROPULSION ------- Light Treads Light Treads Light Treads > --- UTILITY ---------- Weight Redist. System Transport Network Coupler Medium Armor Plating > --- WEAPON ----------- Katana Katana Katana Katana > --- INVENTORY -------- Hover Unit Shield Generator Hacking Suite Assault Cannon Assault Cannon [Rating: 22] Favorites ----------- Power Ion Engine Engine Ion Engine Power Core Light Nuclear Core Propulsion Light Treads Treads Light Treads Leg Aluminum Leg Wheel Wheel Hover Unit Hover Unit Utility Transport Network Coupler Device Weight Redist. System Processor Transport Network Coupler Hackware Hacking Suite Protection Medium Armor Plating Weapon Katana Energy Gun EM Pulse Gun Ballistic Gun Heavy Assault Rifle Ballistic Cannon Assault Cannon Launcher Grenade Launcher Slashing Weapon Katana Build | -11 -10 -9 -8 ------- Run | Yrd Mat Mat Mat Slots Evolved 4 | . . 2 2 Power . | . . . . Propulsion 1 | . . 1 . Utility 1 | . . 1 . Weapon 2 | . . . 2 Parts Attached 49 | 5 10 15 19 Power 6 | 1 1 2 2 Engine 4 | 1 1 2 . Core 2 | . . . 2 Reactor . | . . . . Propulsion 17 | 2 1 5 9 Treads 9 | 2 1 3 3 Leg 4 | . . . 4 Wheel 1 | . . . 1 Hover 3 | . . 2 1 Flight . | . . . . Utility 9 | . 4 3 2 Device 3 | . 1 1 1 Storage . | . . . . Processor 1 | . . 1 . Hackware 2 | . 1 . 1 Protection 3 | . 2 1 . Artifact . | . . . . Weapon 17 | 2 4 5 6 Energy Gun 3 | 1 2 . . Energy Cannon . | . . . . Ballistic Gun 4 | 1 . 3 . Ballistic Cannon 5 | . 1 2 2 Launcher 1 | . 1 . . Special Weapon . | . . . . Impact Weapon . | . . . . Slashing Weapon 4 | . . . 4 Piercing Weapon . | . . . . Special Melee Weapon . | . . . . Unidentified Prototypes . | . . . . Parts Lost 30 | . 1 9 20 Power 5 | . . 2 3 Propulsion 13 | . . 3 10 Utility 6 | . . 2 4 Weapon 6 | . 1 2 3 Highest Loss Streak 11 | . 1 5 11 To Critical Strikes 1 | . . . 1 Average Slot Usage (%) 79 | . 90 77 75 Engine 9 | . 13 9 3 Treads 23 | . 27 24 13 Leg 1 | . . . 5 Hover 1 | . . 2 . Device 6 | . 1 9 5 Processor 4 | . . 5 9 Hackware 5 | . 13 3 1 Protection 5 | . 6 5 3 Energy Gun 3 | . 14 1 . Ballistic Gun 4 | . . 8 . Ballistic Cannon 5 | . . 6 5 Launcher 2 | . 10 . . Slashing Weapon 4 | . . . 22 Peak Build Rating 22 | 5 11 16 22 Average Rating 11 | 4 8 10 16 On Entrance 8 | . 5 11 16 Naked Turns . | . . . . Heaviest Build 22 | 9 13 22 20 Greatest Support 66 | 40 40 66 66 Greatest Overweight (x) 2 | . . 1 2 Average Overweight (x) . | . . . . Largest Inventory Capacity 5 | 5 5 5 5 Average Capacity 5 | 5 5 5 5 Most Carried 5 | . 1 5 5 Average Carried 2 | . . 3 2 Final Capacity 5 | 5 5 5 5 Final Carried 5 | . 1 5 . Class Distribution -------------------- 56% | Mutant 43% | Scavenger-Mutant Dominant Class ---------------- Mutant | -10/Materials Scavenger-Mutant | -9/Materials Scavenger-Mutant | -8/Materials Resources | -11 -10 -9 -8 ----------- Run | Yrd Mat Mat Mat Matter Collected 1016 | 223 166 393 234 Remotely . | . . . . Salvage Created 1298 | . 230 676 392 Parts 92 | . 19 49 24 Haulers Intercepted 2 | . . 2 . Recyclers Shooed . | . . . . Parts Field Recycled . | . . . . Retrieved Matter . | . . . . Parts Self-Destructed . | . . . . Prevented . | . . . . Kills | -11 -10 -9 -8 ------- Run | Yrd Mat Mat Mat Combat Hostiles Destroyed 33 | . 8 18 7 Melee 6 | . . . 6 Guns 11 | . 1 10 . Cannons 8 | . . 7 1 AOE 7 | . 6 1 . Classes Destroyed 11 | . 3 5 3 Worker 1 | . . 1 . Builder 3 | . . . 3 Hauler 2 | . . 2 . Recycler 1 | . . 1 . Operator 3 | . 1 . 2 Watcher 2 | . . 2 . Swarmer 12 | . 3 9 . Grunt 14 | . 5 6 3 Sentry 5 | . . 3 2 Hunter 1 | . . . 1 Heavy 1 | . . . 1 Best Kill Streak 6 | . 5 6 3 Combat Bots Only 5 | . 5 4 2 Max Kills in Single Turn 2 | . 2 1 1 Gunslinging . | . . . . Exploded 2 | . 2 1 . Melee 1 | . . . 1 Uniques/NPCs Destroyed . | . . . . Combat | -11 -10 -9 -8 -------- Run | Yrd Mat Mat Mat Hostile Shots Fired 323 | . 38 137 148 Missed 91 | . 14 41 36 Damage Taken 3360 | . 310 1127 1923 Core 856 | . 68 237 551 Absorbed by Shields 12 | . . . 12 Core Remaining (%) 70 | 100 72 40 . Volleys Fired 137 | . 27 83 27 Largest 2 | . 2 2 2 Hottest 88 | . 60 88 88 Shots Fired 196 | . 29 125 42 Gun 111 | . 24 87 . Cannon 80 | . . 38 42 Launcher 5 | . 5 . . Special . | . . . . Kinetic 162 | . 2 118 42 Thermal . | . . . . Explosive 5 | . 5 . . Electromagnetic 29 | . 22 7 . Robot Hit Streak 12 | . 9 9 12 Robot Miss Streak 5 | . 2 5 3 Penetration Max . | . . . . Secondary Targets 1 | . . 1 . Max Gunslinging Chain 1 | . . 1 . Shots Hit Robots 134 | . 18 70 46 Core Hits 64 | . 16 34 14 Critical Kills . | . . . . Critical Parts Destroyed . | . . . . Critical Strikes 6 | . . . 6 Blast 2 | . . . 2 Sever 4 | . . . 4 Melee Attacks 29 | . . . 29 Impact . | . . . . Slashing 29 | . . . 29 Piercing . | . . . . Sneak Attacks 2 | . . . 2 Combat Hostiles . | . . . . Follow-up Attacks 7 | . . . 7 Damage Inflicted 3186 | . 528 1241 1417 Guns 984 | . 224 760 . Cannons 1169 | . . 430 739 Explosions 346 | . 304 42 . Melee 678 | . . . 678 Ramming 9 | . . 9 . Kinetic 1925 | . 29 1157 739 Thermal 94 | . 52 42 . Explosive 252 | . 252 . . Electromagnetic 228 | . 195 33 . Impact . | . . . . Slashing 678 | . . . 678 Piercing . | . . . . Highest Corruption . | . . . . Average Corruption . | . . . . Corruption Purged . | . . . . Corruption Blocked . | . . . . Overload Shots . | . . . . Overflow Damage 41 | . . . 41 Projectiles . | . . . . Explosions . | . . . . Melee 41 | . . . 41 Knockbacks 2 | . . 1 1 Impact . | . . . . Kinetic 2 | . . 1 1 Secondary . | . . . . Self-Inflicted Damage . | . . . . Shots . | . . . . Rammed 5 | . 1 4 . Targets Rammed 6 | . 1 4 1 Kicked 1 | . . . 1 Crushed . | . . . . Highest Temperature 243 | . 243 153 161 Average Temperature 91 | . 131 48 85 Received Heat Transfer 771 | . 153 249 369 Siege Activations . | . . . . Robots Corrupted 1 | . 1 . . Combat Hostiles 1 | . 1 . . Parts Fried . | . . . . Impact Corruptions . | . . . . Robots Melted . | . . . . Combat Hostiles . | . . . . Parts Melted . | . . . . Heat Transferred 100 | . 100 . . Parts Sabotaged . | . . . . Parts Stolen . | . . . . Parts Stripped . | . . . . Power Chain Reactions 2 | . 1 1 . Alert | -11 -10 -9 -8 ------- Run | Yrd Mat Mat Mat Peak Influence 463 | . 257 463 261 Initial 131 | . . 108 131 Average 221 | . 174 275 169 Maximum Alert Level 2 | . 1 2 1 Low Security (%) 39 | 100 49 23 60 Level 1 56 | . 50 68 39 Level 2 4 | . . 8 . Level 3 . | . . . . Level 4 . | . . . . Level 5 . | . . . . High Security . | . . . . Max Security . | . . . . Squads Dispatched 10 | . 3 4 3 Investigation 2 | . 1 1 . Extermination . | . . . . Reinforcement 8 | . 2 3 3 Assault . | . . . . Garrison . | . . . . Intercept . | . . . . Searches Triggered . | . . . . Construction Impeded 1 | . . 1 . Haulers Reinforced . | . . . . Active Scanning Responses . | . . . . Cargo Convoy Interrupts . | . . . . Stealth | -11 -10 -9 -8 --------- Run | Yrd Mat Mat Mat Distress Signals 3 | . . 2 1 Communications Jammed . | . . . . Distress Signals . | . . . . Times Spotted 49 | . 8 28 13 Peak Tracking Total 5 | . 4 5 4 Tactical Retreats 1 | . . 1 . Traps | -11 -10 -9 -8 ------- Run | Yrd Mat Mat Mat Traps Triggered 5 | . 4 1 . Indirectly . | . . . . Trap Hack Attempts . | . . . . Triggered . | . . . . Disarmed . | . . . . Reprogrammed . | . . . . Reused . | . . . . Traps Extracted . | . . . . Installed . | . . . . Triggered . | . . . . Machines | -11 -10 -9 -8 ---------- Run | Yrd Mat Mat Mat Machines Disabled 1 | . 1 . . Max in Single Turn 1 | . 1 . . Machines Repaired . | . . . . Machines Dismantled . | . . . . Machines Sabotaged . | . . . . Overloaded Fab Kills . | . . . . Hacking | -11 -10 -9 -8 --------- Run | Yrd Mat Mat Mat Machines Accessed 4 | . 1 2 1 Terminals 3 | . . 2 1 Fabricators . | . . . . Repair Stations . | . . . . Recycling Units 1 | . 1 . . Scanalyzers . | . . . . Garrison Access . | . . . . Total Hacks 12 | . 3 6 3 Successful 8 | . 2 3 3 Failed 4 | . 1 3 . Catastrophic . | . . . . Database Lockouts . | . . . . Manual . | . . . . Terminals 9 | . . 6 3 Fabricators . | . . . . Repair Stations . | . . . . Recycling Units 3 | . 3 . . Scanalyzers . | . . . . Garrison Access . | . . . . Terminal Hacks 6 | . . 3 3 Prototype ID Bank 2 | . . 2 . Repair Station Index 1 | . . . 1 Alert Level 1 | . . . 1 Unreport Threat 1 | . . . 1 Reinforcement Status 1 | . . 1 . Fabricator Hacks . | . . . . Repair Station Hacks . | . . . . Recycling Unit Hacks 2 | . 2 . . Report Inventory 1 | . 1 . . Retrieve Components 1 | . 1 . . Scanalyzer . | . . . . Garrison Access Hacks . | . . . . Unauthorized Hacks . | . . . . Terminals . | . . . . Fabricators . | . . . . Repair Stations . | . . . . Recycling Units . | . . . . Scanalyzers . | . . . . Garrison Access . | . . . . Data Cores Recovered . | . . . . Used . | . . . . Hacking Detections 4 | . 1 2 1 Full Trace Events 2 | . 1 1 . Feedback Events . | . . . . Feedback Blocked . | . . . . Robot Schematics Acquired . | . . . . Robots Built . | . . . . Authchips . | . . . . Time . | . . . . Total Robot Build Rating . | . . . . Part Schematics Acquired . | . . . . Parts Built . | . . . . Authchips . | . . . . Time . | . . . . Total Part Build Rating . | . . . . Parts Repaired . | . . . . Time . | . . . . Parts Recycled . | . . . . Recycled Matter . | . . . . Retrieved Matter . | . . . . Retrieved Components 2 | . 2 . . Parts Scanalyzed . | . . . . Part Schematics Acquired . | . . . . Parts Damaged . | . . . . Bothacking | -11 -10 -9 -8 ------------ Run | Yrd Mat Mat Mat Used RIF Installer . | . . . . Robots Hacked . | . . . . Non-combat . | . . . . Combat . | . . . . Robot Hacks Applied . | . . . . Relay Couplers Released . | . . . . Fabnet Peak Effective % . | . . . . Robots Rewired . | . . . . Allies Hacked . | . . . . Hacks Repelled . | . . . . Allies | -11 -10 -9 -8 -------- Run | Yrd Mat Mat Mat Total Allies . | . . . . Largest Group . | . . . . Highest-Rated Group . | . . . . Highest-Rated Ally . | . . . . Total Orders . | . . . . Ally Attacks . | . . . . Total Damage . | . . . . Kills . | . . . . Allies Corrupted . | . . . . Allies Melted . | . . . . Intel | -11 -10 -9 -8 ------- Run | Yrd Mat Mat Mat Robot Analysis Total . | . . . . Derelict Logs Recovered . | . . . . Drone Launches . | . . . . Drone Recoveries . | . . . . Exploration | -11 -10 -9 -8 ------------- Run | Yrd Mat Mat Mat Turns Passed 1607 | 49 368 854 336 Spaces Moved 760 | 28 184 430 118 Core 9 | 2 . 4 3 Treads 613 | 26 184 328 75 Legs 30 | . . . 30 Wheels 5 | . . . 5 Hover 103 | . . 98 5 Flight . | . . . . Fastest Speed 50 | 50 160 50 50 Average Speed 147 | 152 160 140 148 Slowest Speed 190 | 160 160 160 190 Overloaded Moves . | . . . . Propulsion Burnouts . | . . . . Robots Hopped . | . . . . Cave-ins Triggered . | . . . . Exploration Rate (%) 25 | 3 46 39 15 Regions Visited 3 Branch Regions . Pre-discovered Areas . | . . . . Known Exits Taken . | . . . . Unknown Exits Taken 3 | 1 1 1 . Scrap Searched . | . . . . Spaces Dug . | . . . . Terrain Destroyed 33 | . 19 7 7 Melee . | . . . . Projectile 10 | . . 3 7 AOE 23 | . 19 4 . Terrain Rammed . | . . . . Walls Destroyed . | . . . . Machines Disabled . | . . . . Actions | -11 -10 -9 -8 --------- Run | Yrd Mat Mat Mat Total 1010 | 32 224 551 203 Wait 15 | . . 5 10 Move 757 | 27 183 429 118 Hop . | . . . . Pick Up 12 | . 1 8 3 Fast Attach 36 | 5 10 13 8 Attach 12 | . . 2 10 Detach 3 | . . 1 2 Swap 1 | . . . 1 Drop 11 | . 2 6 3 Fire 137 | . 27 83 27 Melee 20 | . . . 20 Ram . | . . . . Kick 1 | . . . 1 Crush 5 | . 1 4 . Escape Stasis . | . . . . Rewire . | . . . . Trap . | . . . . Miscellaneous . | . . . . Route ------- -11/Scrapyard -10/Materials (discovered 2 exits: *Mat / [*Min]) -9/Materials (discovered 3 exits: *Mat / [*Min] / [*Sto]) -8/Materials History --------- Turn | Location | Event 26 | -11/Scrapyard | Discovered new exit (range 16) 50 | -11/Scrapyard | Entered Materials 237 | -10/Materials | Discovered new exit (range 16) 300 | -10/Materials | Build established: Mutant 399 | -10/Materials | Discovered new exit (range 8) 418 | -10/Materials | Entered another Materials area 418 | -9/Materials | Evolved 2 slots: Propulsion x1, Utility x1 566 | -9/Materials | Discovered new exit (range 5) 736 | -9/Materials | Lost 5 parts (1p1n2u1w) 821 | -9/Materials | Lost 3 parts (1p2n) 887 | -9/Materials | Discovered new exit (range 8) 890 | -9/Materials | Core integrity fell below 50% 1139 | -9/Materials | Build established: Scavenger-Mutant 1219 | -9/Materials | Discovered new exit (range 13) 1272 | -9/Materials | Entered another Materials area 1272 | -8/Materials | Evolved 2 slots: Weapon x2 1469 | -8/Materials | Core integrity fell below 50% 1502 | -8/Materials | Lost 11 parts (2p6n2u1w) 1594 | -8/Materials | Core integrity fell below 20% 1608 | -8/Materials | Destroyed by Y-45 Defender with Beam Rifle Last Messages --------------- 01578_ K-01 Serf collects debris. 01578_ Assault Cannon destroyed. 01580_ U-05 Engineer builds a Wall. 01581_ Acquired 5 matter. 01582_ K-01 Serf collects debris. 01584_ U-05 Engineer destroyed. 01585_ Aluminum Leg destroyed. 01585_ Lgt. Treads destroyed. 01586_ K-01 Serf collects debris. 01586_ H-61 Shepherd destroyed. 01587_ Critical hit (Burn: +37). 01589_ K-01 Serf collects debris. 01598_ Penetrated by Slug. 01598_ K-01 Serf collects debris. 01601_ Penetrated by Slug. 01601_ Assault Cannon destroyed. 01603_ K-01 Serf collects debris. 01603_ Acquired Wheel. 01604_ Penetrated by Slug. 01605_ K-01 Serf collects debris. Map ----- +----------------------------------------------------+ | ???????????????????????????????? | | ???????????????????????????????? | | ???????????????????????????????? | | ???????????????????????????????? | | ???????????????????????????????? | | ???????????????????????????????? | | ???????????????????????????????? | | ???????????????????????????????? | | ???????????????????????????????? | | ???????????????????????????????? | | ??????#+#?????????#????????????? | | ?####?# #??????? ##???????????? | | ?#!! ?# #?##??? ##???????????? | | ?#!! ## ###### ####????????? | | ?#!! %% = % % ?????????? | | ?#!! %!%% %% ????????????? | | ?#== =%= %% ??????a????????? | | ?#== %!####??????????????????? | | ???##%hY%;*#???????????????????? | | ???#;% % %#????????????????????? | | ????# % #????????????????????? | | ???##%! #????????????????????? | | ???##! #????????????????????? | | ????# #????????????????????? | | ????## k##????????????????????? | | ?????# @k###########???????????? | | ?????# # #???????????? | | ?????# #"" #???????????? | | ?????# #"T #???????????? | | ?????# #"" ///#???????????? | | ?????# +/=[ ///#???????????? | | ?????# #% % ///#???????????? | | ?????# #! / ! #???????????? | | ?????#% # / %[#???????????? | | ?????# ###### ####???????????? | | ?????# #????###??????????????? | | ?????# #?????????????????????? | | ?????# #?????????????????????? | | ?????# %###########???????????? | | ?????# #???????????? | | ?????# #???????????? | | ?????# #???????????? | | ?????##+####+### ########????? | | ?????# T # #????? | | ?????# # #????? | | ?????# + ! #????? | | ?????# # #????? | | ?????# ### """ #????? | | ?????# ! #?# """* #????? | | ?????# ! #?# """ #????? | +----------------------------------------------------+ Best States ------------- Heat Dissipation 42 Energy Generation 14 Energy Capacity 250 Matter Stores 300 Matter Capacity 300 Sight Range 16 Terrain Scan Density 10 Additional Mass Support 6 Armor Coverage 225 Evasion (%) 55 Recoil Reduction 3 Offensive Hacking 10 Item Schematics ----------------- None Robot Schematics ------------------ None Fabricated ------------ Nothing Alien Tech Used ----------------- None Achievements -------------- None Challenges ------------ None Game ------ Seed PointyFocalScreen Manual? 0 Play Time 00:24:45 Cumulative 12.7 hours Start 2024.08.14 @ 10:39:20 End 2024.08.14 @ 18:56:37 Sessions 3 Manual Loads 0 Difficulty Rogue Special Mode None Game No. 7 Rogue 7 Adventurer 0 Explorer 0 Win Type - Total 0 Types 0/0/0/0/0/0/0/0/0 Lore% 9 Gallery% 14 Achievement% 17 Wizard Run 0 Options --------- Layout 1 ASCII 0 Keyboard 0 Movement Numpad Keybinds 0 Fullscreen 1 Font 24/Smallcaps Map View 50x35 Zoom Use 0% Tactical HUD 1 Map Filters NONE Filters NONE Steam 1 RUN: adb1c42f-8b26-4e3e-9efa-93a9a6db1a66